bitfinex/quotes_BTCUSD_20250313
["timestamp","ask_amount","ask_price","bid_price","bid_amount"]
[1741900946492,0.71685068,80741.0,80740.0,0.0033376]
[1741900949632,0.72923568,80741.0,80740.0,0.0033376]
[1741900950763,0.71685068,80741.0,80740.0,0.0033376]
[1741900954077,0.45407379,80741.0,80740.0,0.0033376]
[1741900959307,0.86357379,80741.0,80740.0,0.0033376]
[1741900972367,0.86374269,80741.0,80740.0,0.0033376]
[1741900981078,0.87612769,80741.0,80740.0,0.0033376]
[1741900988106,0.86374269,80741.0,80740.0,0.0033376]
[1741900991282,0.87612769,80741.0,80740.0,0.0033376]
[1741900992946,0.90416151,80741.0,80740.0,0.0033376]
[1741900993775,0.87612769,80741.0,80740.0,0.0023376]
[1741900994549,0.87612769,80741.0,80740.0,0.0003376]
[1741900994750,0.87612769,80741.0,80740.0,0.0013376]
[1741900995351,0.90062815,80741.0,80740.0,0.0013376]
[1741900997751,0.012387,80726.0,80725.0,0.0262376]
[1741900997992,0.24777,80720.0,80719.0,0.0798]
[1741900998209,0.24777,80720.0,80719.0,0.07992421]
[1741900998659,0.26630052,80720.0,80719.0,0.07992421]
[1741900999111,0.26630052,80720.0,80719.0,0.08392421]
[1741900999360,0.56630052,80720.0,80719.0,0.00412421]
[1741901000263,0.97580052,80720.0,80719.0,0.00812421]
[1741901000486,1.09244812,80720.0,80719.0,0.00812421]
[1741901000701,1.09244812,80720.0,80719.0,0.00412421]
[1741901000927,1.76272052,80720.0,80719.0,0.00012421]
[1741901001176,1.76272052,80720.0,80719.0,0.00412421]
[1741901001392,1.76272052,80720.0,80719.0,0.00212421]
[1741901001629,1.76272052,80720.0,80719.0,0.00412421]
[1741901002489,1.86476727,80720.0,80719.0,0.00412421]
[1741901002673,1.87402342,80720.0,80719.0,0.00412421]
[1741901002877,1.87402342,80720.0,80719.0,0.00212421]
[1741901003168,1.87402342,80720.0,80719.0,0.00412421]
[1741901003807,1.87402342,80720.0,80719.0,0.00212421]
[1741901004039,1.87402342,80720.0,80719.0,0.00112421]
[1741901004230,1.87402342,80720.0,80719.0,0.00212421]
[1741901004408,1.87402342,80720.0,80719.0,0.00112421]
[1741901004811,1.87402342,80720.0,80719.0,0.00212421]
[1741901006081,2.96932342,80720.0,80719.0,0.00212421]
[1741901006788,2.96932342,80720.0,80719.0,0.00229321]
[1741901008401,2.86727667,80720.0,80719.0,0.00229321]
[1741901008605,2.30711867,80720.0,80719.0,0.12659321]
[1741901010502,2.30711867,80720.0,80719.0,0.38675421]
[1741901012038,1.21181867,80720.0,80719.0,0.38675421]
[1741901015759,1.20256252,80720.0,80719.0,0.38675421]
[1741901015976,0.41564252,80720.0,80719.0,0.38675421]
[1741901016883,0.41564252,80720.0,80719.0,0.38575421]
[1741901017090,0.41564252,80720.0,80719.0,0.53351421]
[1741901017296,0.41564252,80720.0,80719.0,0.53751421]
[1741901018071,0.7872489,80741.0,80740.0,0.386293]
[1741901020818,0.0001689,80741.0,80740.0,0.386293]
[1741901021401,0.0001689,80741.0,80740.0,0.387293]
[1741901021604,0.0001689,80741.0,80740.0,0.386293]
[1741901022034,0.0001689,80741.0,80740.0,0.392293]
[1741901023904,0.0001689,80741.0,80740.0,0.398293]
[1741901042014,0.0001689,80741.0,80740.0,0.392293]
[1741901042231,0.0001689,80741.0,80740.0,0.391293]
[1741901042861,0.0001689,80741.0,80740.0,0.386293]
[1741901043065,0.0001689,80741.0,80740.0,0.391293]
[1741901043689,0.0001689,80741.0,80740.0,0.396293]
[1741901045334,0.06267043,80754.0,80749.0,0.247678]
[1741901045532,0.247664,80755.0,80749.0,0.247678]
[1741901046088,0.247667,80754.0,80749.0,0.247679]
[1741901046577,0.247667,80754.0,80749.0,0.249679]
[1741901047033,0.247667,80754.0,80749.0,0.250679]
[1741901047511,0.247664,80755.0,80750.0,0.247675]
[1741901048474,0.24766,80756.0,80751.0,0.247672]
[1741901048958,0.24766,80756.0,80752.0,0.24767]
[1741901049233,0.24766,80756.0,80751.0,0.260055]
[1741901050257,0.24766,80756.0,80751.0,0.261055]
[1741901050581,0.4095,80757.0,80753.0,0.012383]
[1741901050740,0.4095,80757.0,80754.0,0.247665]
[1741901050988,0.247659,80756.0,80752.0,0.24767]
[1741901051461,0.247659,80756.0,80751.0,0.014383]
[1741901051643,0.247659,80756.0,80751.0,0.013383]
[1741901053016,0.247659,80756.0,80754.0,0.001]
[1741901053224,0.247659,80756.0,80751.0,0.012383]
[1741901053636,0.247659,80756.0,80751.0,0.013383]
[1741901053853,0.247659,80756.0,80754.0,0.001]
[1741901054487,0.247659,80756.0,80751.0,0.013383]
[1741901054689,0.247659,80756.0,80751.0,0.261056]
[1741901055099,0.4095,80757.0,80752.0,0.260053]
[1741901055520,0.000169,80756.0,80753.0,0.260049]
[1741901055657,0.000169,80756.0,80754.0,0.247664]
[1741901055853,0.000169,80756.0,80753.0,0.247666]
[1741901056618,0.000169,80756.0,80754.0,0.001]
[1741901056826,0.000169,80756.0,80753.0,0.247666]
[1741901057247,0.000169,80756.0,80753.0,0.248666]
[1741901057452,0.000169,80756.0,80752.0,0.012383]
[1741901057651,0.000169,80756.0,80752.0,0.260053]
[1741901057856,0.000169,80756.0,80754.0,0.002]
[1741901058060,0.000169,80756.0,80754.0,0.001]
[1741901059235,0.000169,80756.0,80754.0,0.248663]
[1741901059452,0.000169,80756.0,80754.0,0.247663]
[1741901059871,0.000169,80756.0,80754.0,0.260046]
[1741901060530,0.17905042,80757.0,80754.0,0.261046]
[1741901060733,0.17905042,80757.0,80754.0,0.262046]
[1741901061545,0.17905042,80757.0,80754.0,0.261046]
[1741901062473,0.17905042,80757.0,80754.0,0.260046]
[1741901062974,0.17905042,80757.0,80754.0,0.262046]
[1741901064863,0.58855042,80757.0,80754.0,0.262046]
[1741901065674,0.58855042,80757.0,80755.0,0.260043]
[1741901065925,0.58855042,80757.0,80756.0,0.142482]
[1741901067871,0.58855042,80757.0,80756.0,0.147482]
[1741901068136,0.58871932,80757.0,80756.0,0.147482]
[1741901068968,0.58871932,80757.0,80756.0,0.152482]
[1741901071649,0.58871932,80757.0,80756.0,0.147482]
[1741901071865,0.58871932,80757.0,80756.0,0.151482]
[1741901072102,0.58871932,80757.0,80756.0,0.146482]
[1741901072341,0.58871932,80757.0,80756.0,0.150482]
[1741901076659,0.58871932,80757.0,80756.0,0.142482]
[1741901076871,0.58871932,80757.0,80756.0,0.15702285]
[1741901077081,0.58871932,80757.0,80756.0,0.16902285]
[1741901077332,0.58871932,80757.0,80756.0,0.16302285]
[1741901077651,0.58871932,80757.0,80756.0,0.16902285]
[1741901077857,0.58871932,80757.0,80756.0,0.16302285]
[1741901078057,0.58871932,80757.0,80756.0,0.15702285]
[1741901078257,0.58871932,80757.0,80756.0,0.16302285]
[1741901078462,0.58871932,80757.0,80756.0,0.16902285]
[1741901078956,0.58871932,80757.0,80756.0,0.16302285]
[1741901079284,0.17921932,80757.0,80756.0,0.16902285]
[1741901080737,0.17921932,80757.0,80756.0,0.16936065]
[1741901093864,0.17914045,80757.0,80756.0,0.16936065]
[1741901094829,4.5e-07,80757.0,80756.0,0.17059874]
[1741901097957,1.5e-07,80761.0,80760.0,0.012382]
[1741901098157,9.5e-07,80763.0,80761.0,0.57456685]
[1741901098480,0.00010351,80763.0,80762.0,0.15646067]
[1741901100460,1.1e-07,80769.0,80768.0,0.260003]
[1741901100667,1.1e-07,80769.0,80768.0,0.388303]
[1741901100875,1.1e-07,80769.0,80768.0,0.54720385]
[1741901101258,1.1e-07,80769.0,80768.0,0.46480385]
[1741901101503,1.1e-07,80769.0,80768.0,0.404363]
[1741901101887,1.1e-07,80769.0,80768.0,0.410363]
[1741901102302,1.1e-07,80769.0,80768.0,0.416363]
[1741901102721,1.1e-07,80769.0,80768.0,0.410363]
[1741901103146,1.1e-07,80769.0,80768.0,0.415363]
[1741901103348,1.1e-07,80769.0,80768.0,0.409363]
[1741901103547,1.1e-07,80769.0,80768.0,0.414363]
[1741901103873,1.1e-07,80769.0,80768.0,0.71324385]
[1741901104756,1.1e-07,80769.0,80768.0,0.70824385]
[1741901105160,1.1e-07,80769.0,80768.0,0.76324385]
[1741901105384,1.1e-07,80769.0,80768.0,0.75824385]
[1741901105592,1.1e-07,80769.0,80768.0,0.75324385]
[1741901105762,0.00024627,80793.0,80792.0,0.259926]
[1741901105976,0.00066016,80793.0,80792.0,0.259926]
[1741901107710,0.00066016,80793.0,80792.0,0.263926]
[1741901108488,0.00066016,80793.0,80792.0,0.267926]
[1741901109829,0.00066016,80793.0,80792.0,0.347426]
[1741901110619,0.00066016,80793.0,80792.0,0.343426]
[1741901111125,0.00066016,80793.0,80792.0,0.345426]
[1741901111338,0.00066016,80793.0,80792.0,0.40646685]
[1741901111542,0.00066016,80793.0,80792.0,0.41246685]
[1741901114078,0.00066016,80793.0,80792.0,0.40646685]
[1741901114271,0.00066016,80793.0,80792.0,0.40046685]
[1741901114453,0.00066016,80793.0,80792.0,0.40646685]
[1741901114658,0.00066016,80793.0,80792.0,0.41246685]
[1741901114863,0.00066016,80793.0,80792.0,0.40046685]
[1741901115263,0.00066016,80793.0,80792.0,0.41246685]
[1741901117757,0.00066016,80793.0,80792.0,0.55674685]
[1741901119664,0.00066016,80793.0,80792.0,0.542206]
[1741901127263,0.00066016,80793.0,80792.0,0.5425438]
[1741901145658,0.00066016,80793.0,80792.0,0.3982638]
[1741901145857,0.00066016,80793.0,80792.0,0.5424238]
[1741901156834,0.00066016,80793.0,80792.0,0.5423838]
[1741901172767,0.3,80817.0,80812.0,0.012374]
[1741901173170,0.01087254,80816.0,80813.0,0.247482]
[1741901174199,0.01087254,80816.0,80812.0,0.012374]
[1741901174579,0.01087254,80816.0,80808.0,0.259873]
[1741901174802,0.247483,80814.0,80808.0,0.259873]
[1741901175326,0.01090021,80813.0,80807.0,0.012375]
[1741901175536,0.247476,80816.0,80807.0,0.012375]
[1741901175710,0.01090021,80812.0,80808.0,0.247498]
[1741901175921,0.01090021,80815.0,80810.0,0.012374]
[1741901176131,0.00908351,80811.0,80810.0,0.012374]
[1741901176324,0.247476,80816.0,80810.0,0.259866]
[1741901176534,0.00908351,80811.0,80810.0,0.259866]
[1741901176737,0.247483,80814.0,80808.0,0.248498]
[1741901176967,0.00908351,80811.0,80808.0,0.250498]
[1741901177124,0.24748,80815.0,80809.0,0.012374]
[1741901177325,0.00908351,80810.0,80809.0,0.012374]
[1741901177525,0.24748,80815.0,80809.0,0.012374]
[1741901177733,0.00908351,80810.0,80809.0,0.012374]
[1741901177938,0.24748,80815.0,80809.0,0.012374]
[1741901178180,0.00908351,80810.0,80809.0,0.259869]
[1741901178377,0.00950771,80817.0,80810.0,0.259865]
[1741901178590,0.00950771,80817.0,80810.0,0.260865]
[1741901178817,0.00908351,80816.0,80810.0,0.259865]
[1741901179064,0.00908351,80816.0,80815.0,0.259851]
[1741901181421,0.78616,80819.0,80817.0,0.259845]
[1741901181845,0.78616,80819.0,80818.0,0.012373]
[1741901182589,0.0362,80820.0,80819.0,0.259839]
[1741901182993,0.79987447,80821.0,80820.0,0.012373]
[1741901183608,0.80744238,80821.0,80820.0,0.012373]
[1741901185926,0.8166291,80821.0,80820.0,0.012373]
[1741901186749,0.79372791,80821.0,80820.0,0.012373]
[1741901188137,0.79372791,80821.0,80820.0,0.088273]
[1741901189321,0.00756791,80821.0,80820.0,0.238313]
[1741901189557,0.0003378,80822.0,80821.0,0.259833]
[1741901190730,0.0003378,80822.0,80821.0,0.340533]
[1741901192097,0.0003378,80822.0,80821.0,0.345533]
[1741901197686,0.0003378,80822.0,80821.0,0.392933]
[1741901198131,0.0003378,80822.0,80821.0,0.40747385]
[1741901198348,8e-07,80822.0,80821.0,0.40747385]
[1741901199847,8e-07,80822.0,80821.0,0.70747385]
[1741901205094,8e-07,80822.0,80821.0,0.692933]
[1741901205308,8e-07,80822.0,80821.0,0.836853]
[1741901209017,0.50139648,80847.0,80844.0,0.24739]
[1741901209201,0.50152055,80847.0,80844.0,0.24739]
[1741901209401,0.00795154,80846.0,80844.0,0.24739]
[1741901211228,0.00795154,80846.0,80844.0,0.259759]
[1741901212577,0.00795154,80846.0,80843.0,0.259759]
[1741901212893,0.00795154,80846.0,80843.0,0.012369]
[1741901213251,0.00795154,80846.0,80843.0,0.259759]
[1741901215458,0.00795154,80846.0,80844.0,0.247387]
[1741901218063,0.00795154,80846.0,80844.0,0.259756]
[1741901219075,0.00795154,80846.0,80845.0,0.012369]
[1741901219293,0.00795154,80846.0,80844.0,0.012369]
[1741901219516,0.00795154,80846.0,80844.0,0.259756]
[1741901220227,0.00795154,80846.0,80845.0,0.012369]
[1741901220653,0.247386,80845.0,80840.0,0.01237]
[1741901220860,0.00812034,80846.0,80842.0,0.247395]
[1741901221076,0.00794439,80844.0,80842.0,0.247395]
[1741901221396,0.00794439,80843.0,80842.0,0.247395]
[1741901221796,0.0001688,80846.0,80842.0,0.247395]
[1741901222004,0.00794439,80843.0,80842.0,0.247395]
[1741901222210,0.0001688,80846.0,80842.0,0.247395]
[1741901222415,0.00794439,80843.0,80842.0,0.247395]
[1741901222662,0.0001688,80846.0,80842.0,0.247395]
[1741901222848,0.00794439,80843.0,80842.0,0.247395]
[1741901223049,0.0001688,80846.0,80842.0,0.247395]
[1741901223280,0.00794439,80843.0,80842.0,0.247395]
[1741901223512,0.0001688,80846.0,80842.0,0.247395]
[1741901223735,0.0001688,80846.0,80832.0,0.091271]
[1741901223736,0.02031339,80843.0,80832.0,0.091271]
[1741901223925,0.247417,80836.0,80830.0,0.247429]
[1741901224109,0.247405,80839.0,80832.0,0.012371]
[1741901224353,0.247405,80839.0,80833.0,0.247423]
[1741901224557,0.25535439,80838.0,80832.0,0.012371]
[1741901225108,0.25535439,80838.0,80832.0,0.259795]
[1741901225293,0.247413,80837.0,80831.0,0.247426]
[1741901225695,0.00794439,80836.0,80831.0,0.247426]
[1741901225890,0.24743,80831.0,80826.0,0.247444]
[1741901226102,0.247435,80830.0,80824.0,0.247449]
[1741901226463,0.247438,80829.0,80824.0,0.259821]
[1741901226782,0.25535657,80828.0,80824.0,0.259821]
[1741901226992,0.247444,80827.0,80821.0,0.0003376]
[1741901227202,0.247442,80827.0,80826.0,0.004]
[1741901227408,0.247437,80829.0,80826.0,0.004]
[1741901227821,0.247441,80828.0,80826.0,0.004]
[1741901227965,0.00791557,80828.0,80826.0,0.004]
[1741901228168,0.25535557,80828.0,80826.0,0.004]
[1741901228376,0.00791557,80828.0,80822.0,0.012372]
[1741901228578,0.00791557,80828.0,80824.0,0.012372]
[1741901228761,0.00791557,80828.0,80824.0,0.014372]
[1741901228985,0.00791557,80828.0,80824.0,0.26182]
[1741901229183,0.247433,80830.0,80825.0,0.247446]
[1741901229429,0.00781862,80827.0,80825.0,0.247446]
[1741901229771,0.00781862,80826.0,80825.0,0.247446]
[1741901229984,0.247452,80824.0,80822.0,0.002]
[1741901230187,0.247452,80824.0,80821.0,0.0003376]
[1741901230188,0.00781862,80826.0,80821.0,0.0003376]
[1741901230391,0.247447,80826.0,80821.0,0.0003376]
[1741901230566,0.247447,80826.0,80825.0,0.001]
[1741901231768,0.247457,80822.0,80821.0,0.0003376]
[1741901233114,0.247457,80822.0,80821.0,0.0033376]
[1741901233255,0.248457,80822.0,80821.0,0.0033376]
[1741901233945,0.670329,80822.0,80821.0,0.0033376]
[1741901234550,0.6781403,80822.0,80821.0,0.0033376]
[1741901237306,0.69753524,80822.0,80821.0,0.0033376]
[1741901239417,0.69753524,80822.0,80821.0,0.0003376]
[1741901239563,0.69653524,80822.0,80821.0,0.0003376]
[1741901240066,0.70053524,80822.0,80821.0,0.0003376]
[1741901242290,0.6811403,80822.0,80821.0,0.0003376]
[1741901245828,0.6811403,80822.0,80802.0,0.012375]
[1741901245829,0.247485,80813.0,80804.0,0.11261728]
[1741901245967,0.247485,80813.0,80804.0,0.11274144]
[1741901246174,0.00773661,80812.0,80804.0,0.11274144]
[1741901246762,0.00773661,80812.0,80811.0,0.012374]
[1741901246966,0.247474,80817.0,80812.0,0.247487]
[1741901247163,0.002,80813.0,80812.0,0.247487]
[1741901247390,0.259847,80817.0,80812.0,0.247487]
[1741901247511,0.25985,80816.0,80811.0,0.259863]
[1741901247715,0.12382859,80816.0,80811.0,0.259863]
[1741901247915,0.37130659,80816.0,80811.0,0.259863]
[1741901248358,0.247468,80819.0,80813.0,0.012374]
[1741901248580,0.45748845,80820.0,80812.0,0.247486]
[1741901248581,0.247474,80817.0,80812.0,0.247486]
[1741901248815,0.259843,80818.0,80814.0,0.24748]
[1741901249266,0.4095,80817.0,80814.0,0.24548]
[1741901249508,0.247479,80815.0,80811.0,0.001]
[1741901249722,0.259852,80815.0,80811.0,0.001]
[1741901249929,0.00769197,80814.0,80811.0,0.248489]
[1741901250136,0.00769197,80814.0,80811.0,0.001]
[1741901250341,0.247484,80813.0,80811.0,0.001]
[1741901250803,0.00769197,80812.0,80811.0,0.001]
[1741901251258,0.00769197,80812.0,80807.0,0.012375]
[1741901251259,0.00769197,80812.0,80810.0,0.259865]
[1741901251471,0.03762983,80815.0,80810.0,0.259865]
[1741901251712,0.00769197,80814.0,80810.0,0.24046924]
[1741901251919,0.01847748,80813.0,80810.0,0.24046924]
[1741901252154,0.01847748,80813.0,80809.0,0.259868]
[1741901252384,0.00769197,80812.0,80811.0,0.24749]
[1741901252618,0.002,80814.0,80811.0,0.24749]
[1741901252854,0.00769197,80812.0,80811.0,0.012374]
[1741901253080,0.01939582,80814.0,80812.0,0.247487]
[1741901253345,0.002,80813.0,80811.0,0.259862]
[1741901253566,0.02525683,80815.0,80811.0,0.259862]
[1741901253798,0.00769197,80812.0,80811.0,0.259862]
[1741901254009,0.02525683,80815.0,80811.0,0.259862]
[1741901254213,0.00769197,80812.0,80811.0,0.259862]
[1741901254450,0.02525683,80815.0,80811.0,0.259862]
[1741901254663,0.00769197,80812.0,80810.0,0.259866]
[1741901254896,0.02525683,80815.0,80811.0,0.002]
[1741901255067,0.656981,80814.0,80811.0,0.002]
[1741901255245,0.656981,80814.0,80805.0,0.259882]
[1741901255246,0.001,80812.0,80805.0,0.259882]
[1741901255442,0.247486,80813.0,80806.0,0.259878]
[1741901255647,0.247486,80813.0,80811.0,0.002]
[1741901256081,0.247509,80805.0,80800.0,0.247563]
[1741901256443,0.247506,80807.0,80805.0,0.002]
[1741901256846,0.26690231,80807.0,80805.0,0.002]
[1741901257656,0.247509,80805.0,80800.0,0.012416]
[1741901258073,0.26690231,80807.0,80801.0,0.012376]
[1741901258612,0.247508,80806.0,80801.0,0.259896]
[1741901259387,0.247508,80806.0,80804.0,0.11674144]
[1741901260718,0.247508,80806.0,80804.0,0.11274144]
[1741901261126,0.00769197,80805.0,80804.0,0.11674144]
[1741901262091,0.00769197,80805.0,80804.0,0.11274144]
[1741901262565,0.26690131,80807.0,80804.0,0.11674144]
[1741901262748,0.00769197,80805.0,80804.0,0.11674144]
[1741901262955,0.26690131,80807.0,80804.0,0.11674144]
[1741901263114,0.00769197,80805.0,80804.0,0.11674144]
[1741901263314,0.20192036,80807.0,80804.0,0.11674144]
[1741901263627,0.00638125,80806.0,80804.0,0.11674144]
[1741901263814,0.00638125,80806.0,80804.0,0.11274144]
[1741901264267,0.00638125,80806.0,80804.0,0.11674144]
[1741901264689,0.00638125,80806.0,80804.0,0.11274144]
[1741901265048,0.247498,80809.0,80804.0,0.11674144]
[1741901265252,0.00638125,80805.0,80804.0,0.11674144]
[1741901265495,0.247498,80809.0,80804.0,0.11674144]
[1741901265949,0.247503,80807.0,80804.0,0.11674144]
[1741901266608,0.00638125,80806.0,80804.0,0.11674144]
[1741901267045,0.0161656,80807.0,80804.0,0.11274144]
[1741901267245,0.0161656,80807.0,80804.0,0.11574144]
[1741901267552,0.2636686,80807.0,80804.0,0.11574144]
[1741901267832,0.2636686,80807.0,80804.0,0.11274144]
[1741901268045,0.0161656,80807.0,80804.0,0.11674144]
[1741901268483,0.0161656,80807.0,80804.0,0.11274144]
[1741901268839,0.0161656,80807.0,80804.0,0.11674144]
[1741901269819,0.2636696,80807.0,80804.0,0.11674144]
[1741901270241,0.0161656,80807.0,80804.0,0.36425244]
[1741901270572,0.0161656,80807.0,80804.0,0.11674144]
[1741901271322,0.0161656,80807.0,80804.0,0.11707944]
[1741901271521,0.0163346,80807.0,80804.0,0.11707944]
[1741901271978,0.0163346,80807.0,80804.0,0.36458944]
[1741901272336,0.000169,80807.0,80804.0,0.36458944]
[1741901272553,0.000169,80807.0,80804.0,0.37696444]
[1741901274505,0.000169,80807.0,80806.0,0.012375]
[1741901274675,0.000169,80807.0,80806.0,0.089475]
[1741901275902,0.000169,80807.0,80806.0,0.093475]
[1741901280132,0.000169,80807.0,80806.0,0.0811]
[1741901280376,0.000169,80807.0,80806.0,0.06170471]
[1741901280969,0.000169,80807.0,80806.0,0.004]
[1741901284098,0.23957,80809.0,80806.0,0.004]
[1741901284304,0.4095,80808.0,80806.0,0.004]
[1741901284931,0.657001,80808.0,80804.0,0.03047944]
[1741901285090,0.247504,80807.0,80804.0,0.03047944]
[1741901285287,0.657001,80808.0,80806.0,0.003]
[1741901285705,0.4095,80808.0,80806.0,0.003]
[1741901285914,0.4095,80808.0,80804.0,0.27798944]
[1741901286799,0.4095,80808.0,80804.0,0.29036444]
[1741901287400,0.657001,80808.0,80804.0,0.03447944]
[1741901287963,0.67639782,80808.0,80804.0,0.03447944]
[1741901288319,0.67639782,80808.0,80804.0,0.28198944]
[1741901288521,0.42889682,80808.0,80804.0,0.28198944]
[1741901288747,0.42889682,80808.0,80804.0,0.29436444]
[1741901291506,0.42889682,80808.0,80806.0,0.247504]
[1741901292022,0.42889682,80808.0,80804.0,0.29436444]
[1741901292386,0.42889682,80808.0,80804.0,0.29036444]
[1741901293796,0.67639682,80808.0,80804.0,0.29036444]
[1741901294198,0.42889682,80808.0,80804.0,0.29036444]
[1741901294399,0.42889682,80808.0,80806.0,0.004]
[1741901294593,0.24589276,80808.0,80806.0,0.004]
[1741901295001,0.24589276,80808.0,80804.0,0.29036444]
[1741901295353,0.24589276,80808.0,80804.0,0.29436444]
[1741901295710,0.24589276,80808.0,80804.0,0.29036444]
[1741901296079,0.24589276,80808.0,80806.0,0.000338]
[1741901296352,0.24606176,80808.0,80806.0,0.000338]
[1741901296561,0.22666494,80808.0,80804.0,0.27130568]
[1741901297062,0.22666494,80808.0,80806.0,0.247505]
[1741901297257,0.22666494,80808.0,80806.0,0.004]
[1741901297405,0.22666494,80808.0,80806.0,0.251506]
[1741901297605,0.22666494,80808.0,80806.0,0.263881]
[1741901297803,0.22666494,80808.0,80807.0,0.012375]
[1741901298007,0.22666494,80808.0,80806.0,0.259881]
[1741901298869,0.22666494,80808.0,80806.0,0.263881]
[1741901299473,0.2460616,80808.0,80806.0,0.263881]
[1741901300348,0.2460616,80808.0,80807.0,0.012375]
[1741901300556,0.2460616,80808.0,80807.0,0.089675]
[1741901301415,0.2460616,80808.0,80807.0,0.0773]
[1741901301592,0.2460616,80808.0,80807.0,0.093675]
[1741901305438,0.2460616,80808.0,80807.0,0.0813]
[1741901310415,0.2460616,80808.0,80807.0,0.093675]
[1741901310644,0.22666494,80808.0,80807.0,0.093675]
[1741901313520,0.24606123,80808.0,80807.0,0.093675]
[1741901314817,0.22666494,80808.0,80807.0,0.093675]
[1741901319049,0.24606124,80808.0,80807.0,0.093675]
[1741901320683,0.24606124,80808.0,80807.0,0.143475]
[1741901320851,2.4e-07,80808.0,80807.0,0.1674431]
[1741901321051,2.4e-07,80808.0,80807.0,0.4817139]
[1741901321282,0.000169,80817.0,80816.0,0.143973]
[1741901321541,0.000169,80817.0,80816.0,0.14521016]
[1741901321675,0.000169,80817.0,80816.0,0.39268516]
[1741901321882,0.000169,80817.0,80816.0,0.391448]
[1741901322772,0.000169,80817.0,80816.0,0.394448]
[1741901322978,0.4095,80838.0,80837.0,0.341581]
[1741901323324,0.52028127,80839.0,80838.0,0.01237]
[1741901324197,0.52028127,80839.0,80837.0,0.341581]
[1741901324431,0.40955629,80839.0,80838.0,0.01237]
[1741901324650,0.40955629,80839.0,80838.0,0.09007]
[1741901325334,0.40955629,80839.0,80838.0,0.08707]
[1741901325986,0.41255629,80839.0,80838.0,0.08707]
[1741901326200,0.40955629,80839.0,80838.0,0.08707]
[1741901326644,0.41055629,80839.0,80838.0,0.08707]
[1741901327471,0.41055629,80839.0,80838.0,0.09007]
[1741901328150,0.40955629,80839.0,80838.0,0.09007]
[1741901328377,0.00105629,80839.0,80838.0,0.09007]
[1741901328612,0.01944589,80839.0,80838.0,0.09007]
[1741901328835,0.01944589,80839.0,80838.0,0.08707]
[1741901329096,0.01944589,80839.0,80838.0,0.09307]
[1741901331261,0.01944589,80839.0,80838.0,0.0934078]
[1741901331502,0.01961479,80839.0,80838.0,0.0934078]
[1741901333794,0.00022519,80839.0,80838.0,0.0934078]
[1741901335227,0.00022519,80839.0,80838.0,0.1425447]
[1741901336957,0.01961342,80839.0,80838.0,0.1425447]
[1741901337200,0.01961342,80839.0,80838.0,0.1413078]
[1741901340037,0.01961342,80839.0,80838.0,0.1319378]
[1741901340745,0.01961342,80839.0,80838.0,0.1443078]
[1741901342484,0.01961342,80839.0,80838.0,0.2877478]
[1741901346455,0.00022519,80839.0,80838.0,0.2877478]
[1741901349668,0.11528114,80856.0,80855.0,0.247356]
[1741901350262,0.12095487,80856.0,80855.0,0.259723]
[1741901351206,0.13811208,80856.0,80855.0,0.259723]
[1741901353796,0.13811208,80856.0,80854.0,0.259723]
[1741901354683,0.54761208,80856.0,80854.0,0.259723]
[1741901354946,0.54361208,80856.0,80854.0,0.259723]
[1741901355131,0.54761208,80856.0,80854.0,0.259723]
[1741901355379,0.54778098,80856.0,80854.0,0.259723]
[1741901356841,0.54778098,80856.0,80854.0,0.012367]
[1741901361083,0.54778098,80856.0,80853.0,0.247362]
[1741901361978,0.54378098,80856.0,80853.0,0.247362]
[1741901362350,0.54778098,80856.0,80853.0,0.247362]
[1741901363627,0.5671685,80856.0,80853.0,0.247362]
[1741901364252,0.5671685,80856.0,80853.0,0.22797373]
[1741901364485,0.54778098,80856.0,80853.0,0.22797373]
[1741901366224,0.54778098,80856.0,80854.0,0.0753]
[1741901367646,0.54378098,80856.0,80854.0,0.0753]
[1741901367992,0.56316847,80856.0,80854.0,0.0753]
[1741901369144,0.55749474,80856.0,80854.0,0.0753]
[1741901369322,0.56049474,80856.0,80854.0,0.0753]
[1741901369526,0.55749474,80856.0,80854.0,0.0753]
[1741901369971,0.56049474,80856.0,80854.0,0.0753]
[1741901372614,0.56049474,80856.0,80854.0,0.1253]
[1741901373794,0.54110725,80856.0,80854.0,0.1253]
[1741901376738,0.56049452,80856.0,80854.0,0.1253]
[1741901377170,0.54110725,80856.0,80854.0,0.10591274]
[1741901380032,0.34675374,80856.0,80854.0,0.10591274]
[1741901380435,0.36614095,80856.0,80854.0,0.10591274]
[1741901381054,0.37931998,80856.0,80854.0,0.10591274]
[1741901383384,0.35993277,80856.0,80854.0,0.10591274]
[1741901386238,0.37931999,80856.0,80854.0,0.10591274]
[1741901387120,0.559723,80855.0,80854.0,0.03061228]
[1741901387751,0.97830784,80855.0,80854.0,0.03061228]
[1741901388311,0.98130784,80855.0,80854.0,0.03161228]
[1741901389306,0.97830784,80855.0,80854.0,0.03161228]
[1741901389655,0.98230784,80855.0,80854.0,0.03161228]
[1741901390162,0.98230784,80855.0,80854.0,0.00861228]
[1741901390404,0.98230784,80855.0,80854.0,0.00761228]
[1741901390636,0.98230784,80855.0,80854.0,0.00795008]
[1741901392801,2.07760784,80855.0,80854.0,0.00795008]
[1741901396596,2.09699708,80855.0,80854.0,0.00795008]
[1741901397026,0.247403,80840.0,80835.0,0.247415]
[1741901397261,0.34358484,80839.0,80835.0,0.247415]
[1741901397501,0.34358484,80839.0,80835.0,0.22802577]
[1741901398152,0.59099184,80839.0,80834.0,0.25441468]
[1741901398380,0.34358484,80839.0,80835.0,0.004]
[1741901398502,0.34358484,80839.0,80835.0,0.251415]
[1741901399103,0.34358484,80839.0,80835.0,0.263785]
[1741901399695,0.34358484,80839.0,80835.0,0.259785]
[1741901399819,0.59099084,80839.0,80835.0,0.01637]
[1741901400030,0.34358484,80839.0,80835.0,0.01637]
[1741901400260,0.34358484,80839.0,80835.0,0.263786]
[1741901400454,0.34358484,80839.0,80835.0,0.259785]
[1741901400656,0.36297505,80839.0,80838.0,0.01237]
[1741901401743,0.36397505,80839.0,80838.0,0.01237]
[1741901401965,0.36297505,80839.0,80838.0,0.01237]
[1741901402168,0.36397505,80839.0,80838.0,0.14067]
[1741901402612,0.36397505,80839.0,80838.0,0.1283]
[1741901402829,0.36397505,80839.0,80838.0,0.388078]
[1741901403244,0.36397505,80839.0,80838.0,0.3914158]
[1741901403670,0.36397505,80839.0,80838.0,0.1316378]
[1741901403897,0.36297505,80839.0,80838.0,0.1440078]